Cogmind - Beta 16.1 @@@ ROGUE MODE // 2026.02.28 @ 17:08:44 Player: sckl Result: Destroyed by G-34 Mercenary with Small Laser Performance ------------- Evolutions (0) 0 Regions Visited (1) 200 Robots Destroyed (11) 55 Value Destroyed (261) 261 Prototype IDs (0) 0 Alien Tech Used (0) 0 Bonus (0) 0 TOTAL SCORE: 516 Bonus ------- None Cogmind --------- Core Integrity 0/250 Matter 249/300 Energy 100/100 System Corruption 0% Temperature Warm (167) Movement Core (350) Ox6 Location -10/Materials Parts ------- > --- POWER (1) -------- (None) > --- PROPULSION (2) --- (None) > --- UTILITY (2) ------ Large Storage Unit Seismic Detector > --- WEAPON (2) ------- (None) > --- INVENTORY (15) --- Ion Engine Light Ion Engine Light Treads Light Treads Aluminum Leg Aluminum Leg Aluminum Leg Peak State ------------ > --- POWER ------------ Ion Engine > --- PROPULSION ------- Aluminum Leg Aluminum Leg > --- UTILITY ---------- Small Storage Unit Seismic Detector > --- WEAPON ----------- Assault Rifle Assault Rifle > --- INVENTORY -------- Ion Engine Light Treads Light Treads EM Pulse Gun [Rating: 7] Favorites ----------- Power Ion Engine Engine Ion Engine Propulsion Aluminum Leg Leg Aluminum Leg Utility Seismic Detector Device Seismic Detector Storage Large Storage Unit Weapon Assault Rifle Energy Gun EM Pulse Gun Ballistic Gun Assault Rifle Build | -11 -10 ------- Run | Yrd Mat Slots Evolved . | . . Power . | . . Propulsion . | . . Utility . | . . Weapon . | . . Parts Attached 8 | 1 7 Power 1 | . 1 Engine 1 | . 1 Core . | . . Reactor . | . . Propulsion 3 | . 3 Treads . | . . Leg 3 | . 3 Wheel . | . . Hover . | . . Flight . | . . Utility 3 | 1 2 Device 2 | 1 1 Storage 1 | . 1 Processor . | . . Hackware . | . . Protection . | . . Artifact . | . . Weapon 1 | . 1 Energy Gun 1 | . 1 Energy Cannon . | . . Ballistic Gun . | . . Ballistic Cannon . | . . Launcher . | . . Special Weapon . | . . Impact Weapon . | . . Slashing Weapon . | . . Piercing Weapon . | . . Special Melee Weapon . | . . Unidentified Prototypes . | . . Parts Lost 7 | . 7 Power 1 | . 1 Propulsion 2 | . 2 Utility 1 | . 1 Weapon 3 | . 3 Highest Loss Streak 7 | . 7 To Critical Strikes . | . . Average Backups 7 | 4 7 Power 1 | 1 2 Propulsion 3 | 2 3 Utility . | . . Weapon . | 1 . Tool/Special . | . . Unused Backups 10 | . 10 Power 2 | . 2 Propulsion 4 | . 4 Utility 2 | . 2 Weapon 2 | . 2 Tool/Special . | . . Average Slot Usage (%) 98 | . 98 Engine 13 | . 13 Leg 26 | . 26 Device 14 | . 14 Storage 14 | . 14 Energy Gun 1 | . 1 Ballistic Gun 26 | . 26 Peak Build Rating 7 | 7 7 Average Rating 6 | 6 6 On Entrance 6 | 6 7 Avg Prop Armor Cover (%) . | . . Naked Turns . | . . Heaviest Build 30 | 15 30 Greatest Support 20 | 20 20 Greatest Overweight (x) 7 | . 7 Average Overweight (x) . | . . Largest Inventory Capacity 15 | 8 15 Average Capacity 11 | 8 12 Most Carried 9 | 6 9 Average Carried 7 | 4 7 Final Capacity 15 | 8 15 Final Carried 7 | 6 7 Class Distribution -------------------- 100% | Mutant Dominant Class ---------------- Mutant | -10/Materials Resources | -11 -10 ----------- Run | Yrd Mat Matter Collected 411 | 258 153 Remotely . | . . Salvage Created 398 | 150 248 Parts 28 | 14 14 Haulers Intercepted . | . . Recyclers Shooed 2 | 1 1 Parts Field Recycled . | . . Retrieved Matter . | . . Parts Self-Destructed . | . . Prevented . | . . Parts Restored . | . . Kills | -11 -10 ------- Run | Yrd Mat Combat Hostiles Destroyed 6 | . 6 Guns 6 | . 6 Classes Destroyed 3 | 2 1 Tunneler 4 | 4 . Recycler 1 | 1 . Grunt 6 | . 6 Best Kill Streak 3 | 3 2 Combat Bots Only 2 | . 2 Max Kills in Single Turn 1 | 1 1 Gunslinging . | . . Exploded . | . . Melee . | . . Uniques/NPCs Destroyed . | . . Combat | -11 -10 -------- Run | Yrd Mat Hostile Shots Fired 80 | . 80 Missed 13 | . 13 Hits 67 | . 67 Projectile 67 | . 67 Damage Taken 879 | . 879 Core 260 | . 260 Absorbed by Shields . | . . Core Remaining (%) 100 | 100 . Volleys Fired 42 | 8 34 Largest 2 | 2 2 Hottest 60 | 40 60 Shots Fired 83 | 16 67 Gun 83 | 16 67 Cannon . | . . Launcher . | . . Special . | . . Kinetic 73 | 16 57 Thermal . | . . Explosive . | . . Electromagnetic 10 | . 10 Robot Hit Streak 12 | 5 12 Robot Miss Streak 3 | 1 3 Penetration Max . | . . Secondary Targets . | . . Shots Hit Robots 56 | 9 47 Core Hits 20 | 5 15 Critical Kills . | . . Critical Parts Destroyed . | . . Critical Strikes 1 | . 1 Corrupt 1 | . 1 Melee Attacks . | . . Impact . | . . Slashing . | . . Piercing . | . . Sneak Attacks . | . . Combat Hostiles . | . . Follow-up Attacks . | . . Damage Inflicted 810 | 121 689 Guns 778 | 121 657 Cannons . | . . Explosions . | . . Melee . | . . Ramming 32 | . 32 Kinetic 676 | 121 555 Thermal . | . . Explosive . | . . Electromagnetic 102 | . 102 Impact . | . . Slashing . | . . Piercing . | . . Highest Corruption . | . . Average Corruption . | . . Corruption Purged . | . . Corruption Blocked . | . . Overload Shots . | . . Overflow Damage . | . . Projectiles . | . . Explosions . | . . Melee . | . . Knockbacks . | . . Impact . | . . Kinetic . | . . Secondary . | . . Self-Inflicted Damage . | . . Shots . | . . Rammed . | . . Targets Rammed 5 | . 5 Kicked 5 | . 5 Crushed . | . . Highest Temperature 272 | 6 272 Average Temperature 135 | 6 138 Received Heat Transfer 498 | . 498 Siege Activations . | . . Martial Activations . | . . Shielding Activations . | . . Robots Disrupted . | . . Combat Hostiles . | . . Robots Corrupted . | . . Combat Hostiles . | . . Parts Fried . | . . Impact Corruptions . | . . Robots Melted . | . . Combat Hostiles . | . . Parts Melted . | . . Heat Transferred . | . . Parts Sabotaged . | . . Parts Stolen . | . . Parts Stripped . | . . Power Chain Reactions . | . . Alert | -11 -10 ------- Run | Yrd Mat Maximum Alert Level . | . . Low Security (%) 100 | 100 100 Level 1 . | . . Level 2 . | . . Level 3 . | . . Level 4 . | . . Level 5 . | . . High Security . | . . Max Security . | . . Peak Influence 50 | 10 50 Initial . | . . Average 8 | 3 9 Influence Increases 206 | 25 181 Destroy 0b10 Robot/C 120 | . 120 Destroy 0b10 Robot/NC 25 | 25 . Destroy Leader 10 | . 10 Successful Hack 6 | . 6 Disable Machine 15 | . 15 Lose Combat Pursuer 30 | . 30 Influence Decreases 206 | 25 181 Time Decay 146 | 25 121 Lost Part 60 | . 60 Squads Dispatched 1 | . 1 Investigation 1 | . 1 Extermination . | . . Reinforcement . | . . Assault . | . . Garrison . | . . Intercept . | . . Searches Triggered . | . . Construction Impeded . | . . Haulers Reinforced . | . . Active Scanning Responses . | . . Cargo Convoy Interrupts . | . . Stealth | -11 -10 --------- Run | Yrd Mat Distress Signals 4 | . 4 Communications Jammed . | . . Distress Signals . | . . Times Spotted 14 | . 14 Peak Tracking Total 8 | . 8 Tactical Retreats 1 | . 1 Traps | -11 -10 ------- Run | Yrd Mat Traps Triggered 4 | . 4 Indirectly . | . . Trap Hack Attempts . | . . Triggered . | . . Disarmed . | . . Reprogrammed . | . . Reused . | . . Traps Extracted . | . . Installed . | . . Triggered . | . . Machines | -11 -10 ---------- Run | Yrd Mat Machines Disabled 1 | . 1 Max in Single Turn 1 | . 1 Machines Repaired . | . . Machines Dismantled . | . . Machines Sabotaged . | . . Overloaded Fab Kills . | . . Hacking | -11 -10 --------- Run | Yrd Mat Machines Accessed 2 | . 2 Terminals 1 | . 1 Fabricators . | . . Repair Stations . | . . Recycling Units 1 | . 1 Scanalyzers . | . . Garrison Access . | . . Total Hacks 4 | . 4 Successful 3 | . 3 Failed 1 | . 1 Catastrophic . | . . Database Lockouts . | . . Manual 3 | . 3 Terminals 3 | . 3 Fabricators . | . . Repair Stations . | . . Recycling Units 1 | . 1 Scanalyzers . | . . Garrison Access . | . . Terminal Hacks 1 | . 1 Robot Analysis 1 | . 1 Fabricator Hacks . | . . Repair Station Hacks . | . . Recycling Unit Hacks 1 | . 1 Report Inventory 1 | . 1 Scanalyzer . | . . Garrison Access Hacks . | . . Unauthorized Hacks 1 | . 1 Terminals 1 | . 1 Botnet 1 | . 1 Fabricators . | . . Repair Stations . | . . Recycling Units . | . . Scanalyzers . | . . Garrison Access . | . . Data Cores Recovered . | . . Used . | . . Hacking Detections 1 | . 1 Full Trace Events . | . . Feedback Events . | . . Feedback Blocked . | . . Robot Schematics Acquired . | . . Robots Built . | . . Authchips . | . . Time . | . . Total Robot Build Rating . | . . Part Schematics Acquired . | . . Parts Built . | . . Authchips . | . . Time . | . . Total Part Build Rating . | . . Part Studies Acquired . | . . Parts Repaired . | . . Time . | . . Parts Recycled . | . . Recycled Matter . | . . Retrieved Matter . | . . Retrieved Components . | . . Parts Scanalyzed . | . . Part Schematics Acquired . | . . Parts Damaged . | . . Bothacking | -11 -10 ------------ Run | Yrd Mat Used RIF Installer . | . . Robots Hacked . | . . Non-combat . | . . Combat . | . . Robot Hacks Applied . | . . Relay Couplers Released . | . . Fabnet Peak Effective % . | . . Robots Rewired . | . . Allies Hacked . | . . Hacks Repelled . | . . Allies | -11 -10 -------- Run | Yrd Mat Total Allies . | . . Largest Group . | . . Highest-Rated Group . | . . Highest-Rated Ally . | . . Total Orders . | . . Ally Attacks . | . . Total Damage . | . . Kills . | . . Allies Corrupted . | . . Allies Melted . | . . Intel | -11 -10 ------- Run | Yrd Mat Active Infowar (turns) 464 | 63 401 Seismic 464 | 63 401 Robot Analysis Total 1 | . 1 Derelict Logs Recovered . | . . Drone Launches . | . . Drone Recoveries . | . . Exploration | -11 -10 ------------- Run | Yrd Mat Turns Passed 482 | 80 402 Spaces Moved 188 | 18 170 Core 2 | . 2 Treads . | . . Legs 186 | 18 168 Wheels . | . . Hover . | . . Flight . | . . Fastest Speed 120 | 120 120 Average Speed 158 | 120 162 Slowest Speed 400 | 120 400 Overloaded Moves . | . . Propulsion Burnouts . | . . Robots Hopped . | . . Potential Cave-ins . | . . Cave-ins Triggered . | . . Exploration Rate (%) 18 | 2 34 Regions Visited 1 Branch Regions . Pre-discovered Areas . | . . Known Exits Taken . | . . Unknown Exits Taken 1 | 1 . Scrap Searched . | . . Spaces Dug . | . . Terrain Destroyed . | . . Melee . | . . Projectile . | . . AOE . | . . Terrain Rammed . | . . Walls Destroyed . | . . Machines Disabled . | . . Actions | -11 -10 --------- Run | Yrd Mat Total 286 | 61 225 Wait 36 | 31 5 Move 187 | 17 170 Hop . | . . Pick Up 4 | 2 2 Fast Attach 5 | 1 4 Attach 2 | . 2 Detach . | . . Swap 2 | . 2 Drop 3 | 2 1 Fire 42 | 8 34 Melee . | . . Ram . | . . Kick 5 | . 5 Crush . | . . Escape Stasis . | . . Rewire . | . . Trap . | . . Miscellaneous . | . . Route ------- -11/Scrapyard -10/Materials (discovered 2 exits: [*Min] / [*Sub]) History --------- Turn | Location | Event 12 | -11/Scrapyard | Discovered new exit (range 3) 81 | -11/Scrapyard | Entered Materials 190 | -10/Materials | Discovered new exit (range 10) 227 | -10/Materials | Discovered new exit (range 7) 315 | -10/Materials | Build established: Mutant 451 | -10/Materials | Core integrity fell below 50% 479 | -10/Materials | Core integrity fell below 20% 483 | -10/Materials | Destroyed by G-34 Mercenary with Small Laser Last Messages --------------- 00402_ Kicked R-06 Scavenger. 00410_ Kicked K-01 Serf. 00417_ Triggered Alarm Trap. 00417_ An alarm sounds. 00417_ ALERT: Alarm triggered, dispatching investigation squad. 00417_ W-16 Scout sends out distress signal. 00442_ Assault Rifle destroyed. 00447_ G-47 Trooper destroyed. 00451_ M-13 Machinist sends out distress signal. 00459_ W-16 Scout sends out distress signal. 00462_ G-34 Mercenary destroyed. 00463_ R-06 Scavenger collects Corrupted Imp. Heat Sink. 00464_ Seismic Detector destroyed. 00466_ R-06 Scavenger collects Heat Sink. 00472_ Aluminum Leg destroyed. 00472_ EM Pulse Gun destroyed. 00474_ Ion Engine destroyed. 00474_ Aluminum Leg destroyed. 00480_ Assault Rifle destroyed. 00480_ G-47 Trooper IFF system glitched. Map ----- +----------------------------------------------------+ | ?????######## #?# [ #????????????????????? | | ?????# # #######+#####????????????????????? | | ?????# """ + [ #?????????????????????? | | ?????# """ # #?????????????????????? | | ?????# """ # """ """ #?????????????????????? | | ?????# # """ """ #?????????????????????? | | ?????# !# """ """ #?????????????????????? | | ?????##+##### #?????????????????????? | | ??????# #???# #?????????????????????? | | ?# ???# ##### """ """ #?????????????????????? | | #< ?# """ """ #?????????????????????? | | ?# # ^ """ """ #?????????????????????? | | ?# ^^ #?????????????????????? | | ?# # ^ ##########????????????? | | ?# ##### % # !#????????????? | | ?#??????# ####+####### ## #????????????? | | ????????# # #?# ## "Y" #????????????? | | ????????# # "#?# ## """ #????????????? | | ????????# # T#?# + #????????????? | | ????????# # "#?# ######+####????????????? | | ????????# # #?# g #????? ??????????????? | | ????????# # """ #?# g ##### ????????? | | ????????# # """" #?# g g* T ?????????? | | ????????# # """" #?# gg##### ????????? | | ????????# # #?# #????????? ??????????? | | ????????# ##########?####@#?????????? ?????????? | | ????????# #?????????????# #?????????? ????????? | | ????????# #?????????????# #??????????? ????????? | | ????????# #?????????????# #??????????????????????? | | ????????# #?????????????# #??????????????????????? | | ????????# #????????????? #??????????????????????? | | ????????# #?????????????###??????????????????????? | | ????????# #??????????????????????????????????????? | | ????????# #??????????????????????????????????????? | | ????????# #??????????????????????????????????????? | | ????????# #??????????????????????????????????????? | | ????????# #??????????????????????????????????????? | | ????????# #??????????????????????????????????????? | | ????????# #??????????????????????????????????????? | | ????????#+######?????????????????????????????????? | | ????????# """ #?????????????????????????????????? | | ????????# """ #?????????????????????????????????? | | ######### """ #?????????????????????????????????? | | # # #?????????????????????????????????? | | # # #?????????????????????????????????? | | # # #?????????????????????????????????? | | # """ #+#+######???????????????????????????????? | | # """ # #???????????????????????????????? | | # """ + #???????????????????????????????? | | # # #???????????????????????????????? | +----------------------------------------------------+ Best States ------------- Heat Dissipation 25 Energy Generation 10 Energy Capacity 250 Matter Stores 300 Matter Capacity 300 Sight Range 16 Terrain Scan Density 10 Evasion (%) 55 Item Schematics ----------------- None Robot Schematics ------------------ None Fabricated ------------ Nothing Repaired ---------- Nothing Studied --------- None Alien Tech Used ----------------- None Achievements -------------- None Challenges ------------ None Game ------ Seed WarlordLinearDisintegrator Manual? 0 Play Time 00:08:12 Cumulative 27.5 hours Start 2026.02.28 @ 17:03:58 End 2026.02.28 @ 17:08:44 Sessions 1 Manual Loads 0 Difficulty Rogue Special Mode None Game No. 24 Rogue 24 Adventurer 0 Explorer 0 Win Type - Total 1 Types 1/0/0/0/0/0/0/0/0/0 Lore% 9 Gallery% 20 Achievement% 19 Wizard Run 0 Options --------- Layout 0 ASCII 0 Keyboard 1 Movement Arrows Keybinds 0 Fullscreen 1 Font 28/Terminus Map View 72x54 Zoom Use 0% Tactical HUD 1 Map Filters NONE Filters NONE Steam 1 RUN: 4900cd5a-6128-48af-9bbf-bf011f97abf7